Workbook

Sheet 例題28 逐次反応
A1: 微分方程式数 | B1: 3 | D1: 1 | F1: 定数 | S1: <COCO_28_RxnEG_BR.fsd>
A2: t= | B2: cA= | C2: cB= | D2: cC= | F2: k1= | G2: 0.04 | V2: A | W2: R | X2: S
A3: 405 | B3: 8.329178509e-05 | C3: 3.371075806 | D3: 913.9288409 | F3: k2= | G3: 0.015 | U3: c | V3: Water | W3: Ethylene glycol | X3: Diethylene glycol | Y3: Ethylene oxide | Z3: Total | AA3: cA | AB3: cR | AC3: cS
B4: cA'= | C4: cB'= | D4: cC'= | S4: V | T4: t=V/F | U4: mol/m3 | V4: mol/s | W4: mol/s | X4: mol/s | Y4: mol/s | Z4: mol/s | AA4: mol/m3 | AB4: mol/m3 | AC4: mol/s
A5: 微分方程式→ | B5: =-G2*B3 -> -3.331671403e-06 | C5: =G2*B3-G3*C3 -> -0.05056280541 | D5: =G3*C3 -> 0.05056613708 | S5: 0 | T5: =S5/0.0109 -> 0 | U5: 19264.1 | V5: 10 | W5: 0 | X5: 0 | Y5: 200 | Z5: =SUM(V5:Y5) -> 210 | AA5: =U5*V5/Z5 -> 917.3380952 | AB5: =U5*W5/Z5 -> 0 | AC5: =U5*X5/Z5 -> 0
S6: 0.2 | T6: =S6/0.0109 -> 18.34862385 | U6: 18862.3 | V6: 4.78357 | W6: 4.48098 | X6: 0.735453 | Y6: 194.048 | Z6: =SUM(V6:Y6) -> 204.048003 | AA6: =U6*V6/Z6 -> 442.1956162 | AB6: =U6*W6/Z6 -> 414.2240444 | AC6: =U6*X6/Z6 -> 67.98564513
A7: 積分区間t=[a, | B7: 0 | S7: 0.4 | T7: =S7/0.0109 -> 36.69724771 | U7: 18578 | V7: 2.27833 | W7: 5.54298 | X7: 2.17871 | Y7: 190.1 | Z7: 200.10002 | AA7: 211.5282884 | AB7: 514.6300457 | AC7: 202.2792121
A8: b] | B8: 400 | S8: 0.6 | T8: 55.04587156 | U8: 18373.5 | V8: 1.08239 | W8: 5.21891 | X8: 3.6987 | Y8: 187.384 | Z8: 197.384 | AA8: 100.75433 | AB8: 485.8025113 | AC8: 344.2936836
A9: 積分刻み幅Δt | B9: 15 | S9: 0.8 | T9: 73.39449541 | U9: 18224 | V9: 0.513463 | W9: 4.43351 | X9: 5.05303 | Y9: 185.46 | Z9: 195.460003 | AA9: 47.87347574 | AB9: 413.3648061 | AC9: 471.1266618
A10: 計算結果 | S10: 1 | T10: 91.74311927 | U10: 18113.7 | V10: 0.243372 | W10: 3.5822 | X10: 6.17445 | Y10: 184.069 | Z10: 194.069022 | AA10: 22.71546149 | AB10: 334.3495807 | AC10: 576.300812
A11: t [s] | B11: cA [mol/m3] | C11: cB [mol/m3] | D11: cC [mol/m3] | H11: cA+cB+cC | M11: cA | N11: cR | O11: cS | S11: 1.2 | T11: 110.0917431 | U11: 18031.5 | V11: 0.115302 | W11: 2.81637 | X11: 7.06837 | Y11: 183.047 | Z11: 193.047042 | AA11: 10.7697481 | AB11: 263.0621797 | AC11: 660.2189411
A12: 0 | B12: 917.3 | C12: 0 | D12: 0 | F12: ←初期値入力 | H12: =B12+C12+D12 -> 917.3 | M12: =$B$12*EXP(-$G$2*A12) -> 917.3 | N12: =($G$2*$B$12/($G$3-$G$2))*(EXP(-$G$2*A12)-EXP(-$G$3*A12)) -> 0 | O12: =$B$12*(1+(1/($G$3-$G$2))*(-$G$3*EXP(-$G$2*A12)+$G$2*EXP(-$G$3*A12))) -> 0 | S12: 1.4 | T12: 128.440367 | U12: 17970.1 | V12: 0.0545937 | W12: 2.17961 | X12: 7.76583 | Y12: 182.289 | Z12: 192.2890337 | AA12: 5.10197711 | AB12: 203.6923734 | AC12: 725.744672
A13: 15 | B13: 503.96462 | C13: 365.6296886 | D13: 47.70569145 | H13: =B13+C13+D13 -> 917.3 | M13: =$B$12*EXP(-$G$2*A13) -> 503.4249138 | N13: =($G$2*$B$12/($G$3-$G$2))*(EXP(-$G$2*A13)-EXP(-$G$3*A13)) -> 366.4864219 | O13: =$B$12*(1+(1/($G$3-$G$2))*(-$G$3*EXP(-$G$2*A13)+$G$2*EXP(-$G$3*A13))) -> 47.38866432 | S13: 1.6 | T13: 146.7889908 | U13: 17923.9 | V13: 0.0258395 | W13: 1.67099 | X13: 8.30318 | Y13: 181.723 | Z13: 191.7230095 | AA13: 2.415696558 | AB13: 156.2183785 | AC13: 776.2519918
A14: 30 | B14: 276.8781622 | C14: 492.8398804 | D14: 147.5819573 | H14: 917.3 | M14: 276.2854506 | N14: 493.7773646 | O14: 147.2371848 | S14: 1.8 | T14: 165.1376147 | U14: 17889.2 | V14: 0.0122529 | W14: 1.2737 | X14: 8.71407 | Y14: 181.298 | Z14: 191.2980229 | AA14: 1.145827727 | AB14: 119.109825 | AC14: 814.8946794
A15: 45 | B15: 152.1168623 | C15: 503.9047169 | D15: 261.2784208 | H15: 917.3 | M15: 151.6286702 | N15: 504.6728231 | O15: 260.9985067 | S15: 2 | T15: 183.4862385 | U15: 17863 | V15: 0.00584097 | W15: 0.967422 | X15: 9.02678 | Y15: 180.979 | Z15: 190.979043 | AA15: 0.5463282541 | AB15: 90.4866781 | AC15: 844.3092427
A16: 60 | B16: 83.57300416 | C16: 463.0111938 | D16: 370.715802 | H16: 917.3 | M16: 83.21557855 | N16: 463.5692325 | O16: 370.5151889 | S16: 2.2 | T16: 201.8348624 | U16: 17843.3 | V16: 0.00276979 | W16: 0.733217 | X16: 9.26406 | Y16: 180.739 | Z16: 190.7390468 | AA16: 0.2591089488 | AB16: 68.59115171 | AC16: 866.636405
A17: 75 | B17: 45.91500849 | C17: 403.0357363 | D17: 468.3492552 | H17: 917.3 | M17: 45.66967781 | N17: 403.4144488 | O17: 468.2158734 | S17: 2.4 | T17: 220.1834862 | U17: 17828.4 | V17: 0.00132878 | W17: 0.554931 | X17: 9.44379 | Y17: 180.558 | Z17: 190.5580498 | AA17: 0.1243191845 | AB17: 51.9187295 | AC17: 883.5505287
A18: 90 | B18: 25.22570566 | C18: 340.1338561 | D18: 551.9404383 | H18: 917.3 | M18: 25.0640506 | N18: 340.3792648 | O18: 551.8566846 | S18: 2.6 | T18: 238.5321101 | U18: 17817.2 | V18: 0.000700722 | W18: 0.419585 | X18: 9.57978 | Y18: 180.421 | Z18: 190.4210657 | AA18: 0.06556472085 | AB18: 39.25946866 | AC18: 896.3549047
A19: 105 | B19: 13.85900269 | C19: 281.6587745 | D19: 621.7822228 | H19: 917.3 | M19: 13.75544262 | N19: 281.8121367 | O19: 621.7324207 | S19: 2.8 | T19: 256.8807339 | U19: 17808.7 | V19: 0.000361553 | W19: 0.317134 | X19: 9.68257 | Y19: 180.318 | Z19: 190.3180656 | AA19: 0.03383172739 | AB19: 29.67529251 | AC19: 906.0305645
A20: 120 | B20: 7.614136079 | C20: 230.4345104 | D20: 679.2513536 | H20: 917.3 | M20: 7.549146968 | N20: 230.5272371 | O20: 679.2236159 | S20: 3 | T20: 275.2293578 | U20: 17802.3 | V20: 0.000150774 | W20: 0.239657 | X20: 9.76026 | Y20: 180.24 | Z20: 190.2400678 | AA20: 0.01410914121 | AB20: 22.42664156 | AC20: 913.3463767
A21: 135 | B21: 4.183206362 | C21: 187.0417051 | D21: 726.0750886 | H21: 917.3 | M21: 4.143059699 | N21: 187.0958283 | O21: 726.061112 | S21: 3.2 | T21: 293.5779817 | U21: 17797.5 | V21: 7.82613e-05 | W21: 0.181027 | X21: 9.81896 | Y21: 180.181 | Z21: 190.1810653 | AA21: 0.007323838915 | AB21: 16.94084544 | AC21: 918.8766524
A22: 150 | B22: 2.298253575 | C22: 151.0240995 | D22: 763.9776469 | H22: 917.3 | M22: 2.273759372 | N22: 151.0543189 | O22: 763.9719217 | S22: 3.4 | T22: 311.9266055 | U22: 17793.8 | V22: 8.00003e-05 | W22: 0.136693 | X22: 9.8633 | Y22: 180.137 | Z22: 190.137073 | AA22: 0.007486753192 | AB22: 12.79228645 | AC22: 923.047698
A23: 165 | B23: 1.262660514 | C23: 121.5119609 | D23: 794.5253786 | H23: 917.3 | M23: 1.247865601 | N23: 121.5277526 | O23: 794.5243818 | S23: 3.6 | T23: 330.2752294 | U23: 17791.1 | V23: 4.80701e-05 | W23: 0.103251 | X23: 9.89677 | Y23: 180.103 | Z23: 190.1030691 | AA23: 0.00449871725 | AB23: 9.6629101 | AC23: 926.2050613
A24: 180 | B24: 0.6937056865 | C24: 97.53312233 | D24: 819.073172 | H24: 917.3 | M24: 0.684843162 | N24: 97.54043788 | O24: 819.074719 | S24: 3.8 | T24: 348.6238532 | U24: 17789 | V24: 8.40939e-06 | W24: 0.0780003 | X24: 9.92206 | Y24: 180.078 | Z24: 190.0780687 | AA24: 0.000787016828 | AB24: 7.299881286 | AC24: 928.5843787
A25: 195 | B25: 0.3811219041 | C25: 78.15873819 | D25: 838.7601399 | H25: 917.3 | M25: 0.3758498962 | N25: 78.16123519 | O25: 838.7629149 | S25: 4 | T25: 366.9724771 | U25: 17787.4 | V25: 5.83248e-06 | W25: 0.0588979 | X25: 9.94117 | Y25: 180.059 | Z25: 190.0590737 | AA25: 0.0005458547846 | AB25: 5.512183585 | AC25: 930.3821374
A26: 210 | B26: 0.2093883741 | C26: 62.56329468 | D26: 854.5273169 | H26: 917.3 | M26: 0.2062707965 | N26: 62.56317629 | O26: 854.5305529
A27: 225 | B27: 0.1150379727 | C27: 50.04155604 | D27: 867.143406 | H27: 917.3 | M27: 0.1132038133 | N27: 50.04012178 | O27: 867.1466744
A28: 240 | B28: 0.06320186223 | C28: 40.00507922 | D28: 877.2317189 | H28: 917.3 | M28: 0.06212756998 | N28: 40.00307685 | O28: 877.2347956
A29: 255 | B29: 0.03472310311 | C29: 31.97008169 | D29: 885.2951952 | H29: 917.3 | M29: 0.03409633333 | N29: 31.96792733 | O29: 885.2979763
A30: 270 | B30: 0.01907687285 | C30: 25.54261719 | D30: 891.7383059 | H30: 917.3 | M30: 0.01871246448 | N30: 25.54053087 | O30: 891.7407567
A31: 285 | B31: 0.01048083394 | C31: 20.40391629 | D31: 896.8856029 | H31: 917.3 | M31: 0.01026961825 | N31: 20.40200427 | O31: 896.8877261
A32: 300 | B32: 0.005758170168 | C32: 16.29713017 | D32: 900.9971117 | H32: 917.3 | M32: 0.005636085992 | N32: 16.2954343 | O32: 900.9989296
A33: 315 | B33: 0.00316353869 | C33: 13.01589339 | D33: 904.2809431 | H33: 917.3 | M33: 0.003093149574 | N33: 13.01442035 | O33: 904.2824865
A34: 330 | B34: 0.001738048156 | C34: 10.39472322 | D34: 906.9035387 | H34: 917.3 | M34: 0.001697556479 | N34: 10.39346153 | O34: 906.9048409
A35: 345 | B35: 0.0009548836572 | C35: 8.301095989 | D35: 908.9979491 | H35: 917.3 | M35: 0.0009316387484 | N35: 8.300025818 | O35: 908.9990425
A36: 360 | B36: 0.0005246130812 | C36: 6.628978832 | D36: 910.6704966 | H36: 917.3 | M36: 0.0005112941857 | N36: 6.628077447 | O36: 910.6714113
A37: 375 | B37: 0.0002882224268 | C37: 5.293586917 | D37: 912.0061249 | H37: 917.3 | M37: 0.0002806041986 | N37: 5.292831617 | O37: 912.0068878
A38: 390 | B38: 0.0001583494013 | C38: 4.227154406 | D38: 913.0726872 | H38: 917.3 | M38: 0.0001539988493 | N38: 4.226523998 | O38: 913.073322
A39: 405 | B39: 8.699716108e-05 | C39: 3.375534044 | D39: 913.924379 | H39: 917.3 | M39: 8.451636046e-05 | N39: 3.375009488 | O39: 913.924906
M40: 917.3 | N40: 0 | O40: 0
M41: 917.3 | N41: 0 | O41: 0
M42: 917.3 | N42: 0 | O42: 0
M43: 917.3 | N43: 0 | O43: 0
M44: 917.3 | N44: 0 | O44: 0
M45: 917.3 | N45: 0 | O45: 0
M46: 917.3 | N46: 0 | O46: 0
M47: 917.3 | N47: 0 | O47: 0
M48: 917.3 | N48: 0 | O48: 0
M49: 917.3 | N49: 0 | O49: 0
M50: 917.3 | N50: 0 | O50: 0
M51: 917.3 | N51: 0 | O51: 0
M52: 917.3 | N52: 0 | O52: 0
